[Event "*** Titled Tuesday 3|2 Blitz"]
[Site "Chess.com"]
[Date "2017.05.02"]
[Round "1"]
[White "PowerThinking2650"]
[Black "162a54f5d"]
[Result "1/2-1/2"]
[WhiteElo "2192"]
[BlackElo "2480"]
[TimeControl "180+2"]
[EndTime "13:12:22 PDT"]
[Termination "Game drawn by stalemate"]

1. e4 {[%clk 0:03:02]} 1... e5 {[%clk 0:03:00.3]} 2. Nf3 {[%clk 0:03:01.3]} 2...
Nc6 {[%clk 0:03:01.1]} 3. Nc3 {[%clk 0:03:02.9]} 3... Nf6 {[%clk 0:03:00.1]} 4.
d4 {[%clk 0:03:04.3]} 4... exd4 {[%clk 0:02:57.7]} 5. Nxd4 {[%clk 0:03:05.8]}
5... Bb4 {[%clk 0:02:57.1]} 6. Nxc6 {[%clk 0:03:05]} 6... bxc6 {[%clk 0:02:59]}
7. Bd3 {[%clk 0:03:04.8]} 7... d5 {[%clk 0:02:59.8]} 8. exd5 {[%clk 0:03:05.8]}
8... cxd5 {[%clk 0:02:59.3]} 9. O-O {[%clk 0:03:06.1]} 9... O-O {[%clk 0:02:56]}
10. Bg5 {[%clk 0:03:07.3]} 10... c6 {[%clk 0:02:55.5]} 11. Qf3 {[%clk
0:03:07.7]} 11... Bd6 {[%clk 0:02:48]} 12. Bxf6 {[%clk 0:03:06.5]} 12... Qxf6
{[%clk 0:02:45.7]} 13. Qxf6 {[%clk 0:03:08]} 13... gxf6 {[%clk 0:02:47.6]} 14.
Ne2 {[%clk 0:03:06.9]} 14... Rb8 {[%clk 0:02:46.7]} 15. b3 {[%clk 0:03:06.1]}
15... Re8 {[%clk 0:02:46.7]} 16. Ng3 {[%clk 0:03:02.4]} 16... Re5 {[%clk
0:02:45.9]} 17. f4 {[%clk 0:02:54.5]} 17... Re3 {[%clk 0:02:45.3]} 18. Nf5
{[%clk 0:02:51]} 18... Rxd3 {[%clk 0:02:26.4]} 19. Nxd6 {[%clk 0:02:51.8]} 19...
Rd2 {[%clk 0:02:27.2]} 20. Nxc8 {[%clk 0:02:51.4]} 20... Rxc8 {[%clk 0:02:29.1]}
21. Rf2 {[%clk 0:02:52.4]} 21... Rd4 {[%clk 0:02:24.9]} 22. Re1 {[%clk
0:02:50.7]} 22... Kf8 {[%clk 0:02:24.1]} 23. g3 {[%clk 0:02:47.7]} 23... a5
{[%clk 0:02:25.1]} 24. Rfe2 {[%clk 0:02:16.8]} 24... a4 {[%clk 0:02:25.1]} 25.
Re7 {[%clk 0:02:09.7]} 25... axb3 {[%clk 0:02:23]} 26. axb3 {[%clk 0:02:08.1]}
26... Rd2 {[%clk 0:02:23.8]} 27. R1e2 {[%clk 0:02:03.2]} 27... Rxe2 {[%clk
0:02:18.6]} 28. Rxe2 {[%clk 0:02:03.1]} 28... Ra8 {[%clk 0:02:20.3]} 29. Kf2
{[%clk 0:02:00.1]} 29... c5 {[%clk 0:02:03.3]} 30. Kf3 {[%clk 0:01:59.9]} 30...
d4 {[%clk 0:02:00.1]} 31. Kg4 {[%clk 0:01:56.4]} 31... Rc8 {[%clk 0:01:57.9]}
32. Kf5 {[%clk 0:01:54]} 32... Rc6 {[%clk 0:01:56.4]} 33. Re4 {[%clk 0:01:51.2]}
33... Kg7 {[%clk 0:01:56.3]} 34. Re8 {[%clk 0:01:47.2]} 34... c4 {[%clk
0:01:55.3]} 35. bxc4 {[%clk 0:01:43.7]} 35... Rxc4 {[%clk 0:01:54.6]} 36. Re2
{[%clk 0:01:42.7]} 36... h5 {[%clk 0:01:45.7]} 37. Rd2 {[%clk 0:01:33.6]} 37...
h4 {[%clk 0:01:42.7]} 38. gxh4 {[%clk 0:01:30]} 38... Ra4 {[%clk 0:01:39.5]} 39.
Rg2+ {[%clk 0:01:30.4]} 39... Kh7 {[%clk 0:01:38.4]} 40. Kxf6 {[%clk 0:01:31.3]}
40... d3 {[%clk 0:01:39.9]} 41. cxd3 {[%clk 0:01:11.5]} 41... Rxf4+ {[%clk
0:01:40.5]} 42. Ke5 {[%clk 0:01:12.6]} 42... Rxh4 {[%clk 0:01:40.6]} 43. d4
{[%clk 0:01:12.5]} 43... Rh3 {[%clk 0:01:36.9]} 44. d5 {[%clk 0:01:12]} 44...
Rd3 {[%clk 0:01:37.4]} 45. Kd6 {[%clk 0:01:11.9]} 45... f5 {[%clk 0:01:37.5]}
46. Ke6 {[%clk 0:01:07]} 46... f4 {[%clk 0:01:38.6]} 47. d6 {[%clk 0:01:07.9]}
47... f3 {[%clk 0:01:39.6]} 48. Rf2 {[%clk 0:01:07.8]} 48... Kg6 {[%clk
0:01:40.9]} 49. d7 {[%clk 0:01:03.1]} 49... Re3+ {[%clk 0:01:37.7]} 50. Kd6
{[%clk 0:01:03.4]} 50... Rd3+ {[%clk 0:01:39.1]} 51. Ke7 {[%clk 0:01:02]} 51...
Re3+ {[%clk 0:01:40.2]} 52. Kd8 {[%clk 0:01:01.7]} 52... Kg5 {[%clk 0:01:40.9]}
53. Rf1 {[%clk 0:00:47.7]} 53... Rd3 {[%clk 0:01:40.9]} 54. Rc1 {[%clk
0:00:42.7]} 54... f2 {[%clk 0:01:35.2]} 55. Rf1 {[%clk 0:00:20.7]} 55... Rd2
{[%clk 0:01:35.8]} 56. Ke7 {[%clk 0:00:16.5]} 56... Re2+ {[%clk 0:01:35.3]} 57.
Kd8 {[%clk 0:00:15.4]} 57... Rd2 {[%clk 0:01:36.5]} 58. Kc7 {[%clk 0:00:10.6]}
58... Rc2+ {[%clk 0:01:37.6]} 59. Kb7 {[%clk 0:00:11.4]} 59... Rb2+ {[%clk
0:01:36.3]} 60. Kc6 {[%clk 0:00:12]} 60... Rc2+ {[%clk 0:01:37.4]} 61. Kd6
{[%clk 0:00:13.2]} 61... Rd2+ {[%clk 0:01:38.7]} 62. Ke7 {[%clk 0:00:13.3]}
62... Re2+ {[%clk 0:01:40.1]} 63. Kf7 {[%clk 0:00:13]} 63... Rd2 {[%clk
0:01:41.2]} 64. Ke8 {[%clk 0:00:13.9]} 64... Re2+ {[%clk 0:01:42.2]} 65. Kd8
{[%clk 0:00:15]} 65... Kg4 {[%clk 0:01:40.8]} 66. Rc1 {[%clk 0:00:10.3]} 66...
Re1 {[%clk 0:01:29.4]} 67. Rc4+ {[%clk 0:00:06.8]} 67... Kg5 {[%clk 0:01:30.5]}
68. Rc5+ {[%clk 0:00:07.5]} 68... Kg6 {[%clk 0:01:30]} 69. Rc6+ {[%clk
0:00:07.5]} 69... Kf7 {[%clk 0:01:28.3]} 70. Kc8 {[%clk 0:00:08.1]} 70... f1=Q
{[%clk 0:01:29.2]} 71. d8=Q {[%clk 0:00:08.9]} 71... Re8 {[%clk 0:01:29]} 72.
Rc7+ {[%clk 0:00:06.2]} 72... Kf8 {[%clk 0:01:28.7]} 73. Qxe8+ {[%clk
0:00:04.3]} 73... Kxe8 {[%clk 0:01:30.6]} 74. Kb7 {[%clk 0:00:05.9]} 74... Qg2+
{[%clk 0:01:31.1]} 75. Kb6 {[%clk 0:00:05.9]} 75... Qb2+ {[%clk 0:01:31.2]} 76.
Kc6 {[%clk 0:00:06.3]} 76... Qxh2 {[%clk 0:01:33.1]} 77. Kb6 {[%clk 0:00:07.2]}
77... Kd8 {[%clk 0:01:34.3]} 78. Rc6 {[%clk 0:00:08.2]} 78... Qb2+ {[%clk
0:01:35.2]} 79. Kc5 {[%clk 0:00:08.4]} 79... Qb3 {[%clk 0:01:35.5]} 80. Rd6+
{[%clk 0:00:09.1]} 80... Kc7 {[%clk 0:01:36.9]} 81. Rc6+ {[%clk 0:00:10.2]}
81... Kb7 {[%clk 0:01:37.7]} 82. Rd6 {[%clk 0:00:10.9]} 82... Qc3+ {[%clk
0:01:38.6]} 83. Kd5 {[%clk 0:00:11.9]} 83... Kc7 {[%clk 0:01:40.1]} 84. Re6
{[%clk 0:00:11.2]} 84... Qb3+ {[%clk 0:01:40.3]} 85. Ke5 {[%clk 0:00:11.1]}
85... Kd7 {[%clk 0:01:41.8]} 86. Rd6+ {[%clk 0:00:11.2]} 86... Kc7 {[%clk
0:01:43.3]} 87. Rd5 {[%clk 0:00:13.1]} 87... Qe3+ {[%clk 0:01:43.8]} 88. Kf5
{[%clk 0:00:13.1]} 88... Kc6 {[%clk 0:01:44.7]} 89. Re5 {[%clk 0:00:14.2]} 89...
Qf3+ {[%clk 0:01:45.2]} 90. Ke6 {[%clk 0:00:14.8]} 90... Qf8 {[%clk 0:01:44.2]}
91. Re4 {[%clk 0:00:14.7]} 91... Qe8+ {[%clk 0:01:42.9]} 92. Kf5 {[%clk
0:00:15.1]} 92... Qf7+ {[%clk 0:01:44.3]} 93. Ke5 {[%clk 0:00:14.7]} 93... Qg7+
{[%clk 0:01:42.8]} 94. Kf5 {[%clk 0:00:14.6]} 94... Kd5 {[%clk 0:01:43.6]} 95.
Rf4 {[%clk 0:00:12.9]} 95... Qf7+ {[%clk 0:01:44.5]} 96. Kg4 {[%clk 0:00:13.2]}
96... Qg6+ {[%clk 0:01:45.6]} 97. Kf3 {[%clk 0:00:14.1]} 97... Qg5 {[%clk
0:01:46.1]} 98. Rg4 {[%clk 0:00:14.1]} 98... Qf5+ {[%clk 0:01:46.8]} 99. Rf4
{[%clk 0:00:15]} 99... Qh3+ {[%clk 0:01:48.1]} 100. Kf2 {[%clk 0:00:14.4]}
100... Ke5 {[%clk 0:01:49.3]} 101. Rf3 {[%clk 0:00:14.7]} 101... Qh2+ {[%clk
0:01:50.6]} 102. Ke3 {[%clk 0:00:15.2]} 102... Qc2 {[%clk 0:01:51.3]} 103. Rf2
{[%clk 0:00:15.8]} 103... Qc3+ {[%clk 0:01:51.6]} 104. Ke2 {[%clk 0:00:15.9]}
104... Ke4 {[%clk 0:01:53]} 105. Kf1 {[%clk 0:00:16.5]} 105... Qc1+ {[%clk
0:01:48.3]} 106. Kg2 {[%clk 0:00:16.6]} 106... Qg5+ {[%clk 0:01:49.7]} 107. Kf1
{[%clk 0:00:17.4]} 107... Qg3 {[%clk 0:01:48.4]} 108. Re2+ {[%clk 0:00:17.2]}
108... Kf3 {[%clk 0:01:48.9]} 109. Re3+ {[%clk 0:00:18.1]} 109... Kxe3 {[%clk
0:01:50.2]} 1/2-1/2

[Event "*** Titled Tuesday 3|2 Blitz"]
[Site "Chess.com"]
[Date "2017.05.02"]
[Round "2"]
[White "gmjoey1"]
[Black "iturrizaga"]
[Result "0-1"]
[WhiteElo "2502"]
[BlackElo "2668"]
[TimeControl "180+2"]
[EndTime "13:18:02 PDT"]
[Termination "iturrizaga won by resignation"]

1. e4 {[%clk 0:03:02]} 1... c5 {[%clk 0:02:58.9]} 2. c3 {[%clk 0:02:59.7]} 2...
Nf6 {[%clk 0:02:59.1]} 3. e5 {[%clk 0:03:00.2]} 3... Nd5 {[%clk 0:03:00.7]} 4.
d4 {[%clk 0:03:01.6]} 4... cxd4 {[%clk 0:03:02.6]} 5. cxd4 {[%clk 0:03:03.3]}
5... g6 {[%clk 0:03:03.3]} 6. Bc4 {[%clk 0:03:00.6]} 6... Nb6 {[%clk 0:03:03.9]}
7. Bb3 {[%clk 0:03:01.1]} 7... Bg7 {[%clk 0:03:05.6]} 8. h4 {[%clk 0:03:00.8]}
8... h5 {[%clk 0:03:00.7]} 9. Nf3 {[%clk 0:02:59.6]} 9... d5 {[%clk 0:03:01.8]}
10. Ng5 {[%clk 0:02:58.8]} 10... Nc6 {[%clk 0:03:01.8]} 11. Nc3 {[%clk
0:02:58.6]} 11... Bf5 {[%clk 0:03:02.3]} 12. a3 {[%clk 0:02:50.6]} 12... Rc8
{[%clk 0:03:02.1]} 13. Ba2 {[%clk 0:02:43.5]} 13... e6 {[%clk 0:03:02.5]} 14. f3
{[%clk 0:02:34.9]} 14... f6 {[%clk 0:03:01.7]} 15. g4 {[%clk 0:02:26.6]} 15...
hxg4 {[%clk 0:03:00.8]} 16. fxg4 {[%clk 0:02:26.6]} 16... fxg5 {[%clk 0:03:02]}
17. gxf5 {[%clk 0:02:27.3]} 17... gxf5 {[%clk 0:03:03.7]} 18. h5 {[%clk
0:02:11]} 18... Bh6 {[%clk 0:03:04.5]} 19. Be3 {[%clk 0:02:08.5]} 19... a6
{[%clk 0:02:55.9]} 20. Qd3 {[%clk 0:02:06.8]} 20... Na5 {[%clk 0:02:50.9]} 21.
O-O {[%clk 0:02:03.2]} 21... Nac4 {[%clk 0:02:44.9]} 22. Bc1 {[%clk 0:01:58.9]}
22... g4 {[%clk 0:02:43.9]} 23. Ne2 {[%clk 0:01:50]} 23... Bxc1 {[%clk
0:02:30.6]} 24. Raxc1 {[%clk 0:01:51.9]} 24... Rxh5 {[%clk 0:02:32.3]} 25. Nf4
{[%clk 0:01:50.5]} 25... Rh6 {[%clk 0:02:23.3]} 26. Qg3 {[%clk 0:01:44.2]} 26...
Nd2 {[%clk 0:02:17]} 27. Rxc8 {[%clk 0:01:22.2]} 27... Qxc8 {[%clk 0:02:13]} 28.
Re1 {[%clk 0:01:17.8]} 28... Nf3+ {[%clk 0:02:05.5]} 29. Kf2 {[%clk 0:01:11]}
29... Nxe1 {[%clk 0:02:06.3]} 30. Kxe1 {[%clk 0:01:10]} 30... Qc1+ {[%clk
0:02:06.9]} 31. Ke2 {[%clk 0:01:10.3]} 0-1

[Event "*** Titled Tuesday 3|2 Blitz"]
[Site "Chess.com"]
[Date "2017.05.02"]
[Round "2"]
[White "Schemato"]
[Black "GameOverBro"]
[Result "1-0"]
[WhiteElo "2309"]
[BlackElo "2304"]
[TimeControl "180+2"]
[EndTime "13:18:03 PDT"]
[Termination "Schemato won by resignation"]

1. c4 {[%clk 0:03:02]} 1... Nf6 {[%clk 0:02:59.4]} 2. Nc3 {[%clk 0:03:02.5]}
2... d6 {[%clk 0:03:00.7]} 3. g3 {[%clk 0:03:01.9]} 3... Nbd7 {[%clk 0:03:00.1]}
4. Bg2 {[%clk 0:03:03.2]} 4... e5 {[%clk 0:03:01.3]} 5. e4 {[%clk 0:03:04.4]}
5... Be7 {[%clk 0:03:02.4]} 6. Nge2 {[%clk 0:03:05.4]} 6... Nc5 {[%clk
0:03:02.9]} 7. d3 {[%clk 0:03:04]} 7... a5 {[%clk 0:02:59.7]} 8. b3 {[%clk
0:03:01.1]} 8... O-O {[%clk 0:02:56.1]} 9. O-O {[%clk 0:03:01.7]} 9... Nh5
{[%clk 0:02:28.3]} 10. Be3 {[%clk 0:02:48.3]} 10... Bg5 {[%clk 0:02:19.5]} 11.
f4 {[%clk 0:02:41.2]} 11... exf4 {[%clk 0:02:04.9]} 12. gxf4 {[%clk 0:02:43.1]}
12... Bh6 {[%clk 0:02:01.2]} 13. Qd2 {[%clk 0:01:31.2]} 13... Bg4 {[%clk
0:01:46.5]} 14. d4 {[%clk 0:01:24.9]} 14... Bxe2 {[%clk 0:01:20.3]} 15. Qxe2
{[%clk 0:01:20]} 15... Ne6 {[%clk 0:01:17.8]} 16. Qxh5 {[%clk 0:01:18]} 16...
Qf6 {[%clk 0:00:52.8]} 17. Nd5 {[%clk 0:01:11]} 1-0

[Event "*** Titled Tuesday 3|2 Blitz"]
[Site "Chess.com"]
[Date "2017.05.02"]
[Round "2"]
[White "ZEN-22"]
[Black "hypert"]
[Result "0-1"]
[WhiteElo "2387"]
[BlackElo "2280"]
[TimeControl "180+2"]
[EndTime "13:18:08 PDT"]
[Termination "hypert won by resignation"]

1. e3 {[%clk 0:01:17.7]} 1... d5 {[%clk 0:03:00]} 2. d4 {[%clk 0:01:16.9]} 2...
e6 {[%clk 0:02:59.5]} 3. c4 {[%clk 0:01:18.8]} 3... c6 {[%clk 0:03:00.5]} 4. Nc3
{[%clk 0:01:19.7]} 4... Bd6 {[%clk 0:03:02]} 5. f4 {[%clk 0:01:21.1]} 5... Nd7
{[%clk 0:03:02.9]} 6. Nf3 {[%clk 0:01:22.7]} 6... f5 {[%clk 0:03:03]} 7. g4
{[%clk 0:01:21.6]} 7... fxg4 {[%clk 0:02:59.7]} 8. Ne5 {[%clk 0:01:21.9]} 8...
Bxe5 {[%clk 0:03:00.3]} 9. dxe5 {[%clk 0:01:22.7]} 9... Qh4+ {[%clk 0:03:01.2]}
10. Ke2 {[%clk 0:01:23.6]} 10... Nh6 {[%clk 0:03:00.6]} 11. Bd2 {[%clk
0:01:20.6]} 11... O-O {[%clk 0:03:00.5]} 12. Be1 {[%clk 0:01:20.8]} 12... Qh5
{[%clk 0:03:01.8]} 13. Kd2 {[%clk 0:01:22]} 13... Nc5 {[%clk 0:02:59.6]} 14. b4
{[%clk 0:01:14.6]} 14... Ne4+ {[%clk 0:02:59.2]} 15. Nxe4 {[%clk 0:01:15.8]}
15... dxe4 {[%clk 0:03:00.7]} 16. Kc2 {[%clk 0:01:08.5]} 16... c5 {[%clk
0:03:00.1]} 17. b5 {[%clk 0:01:07.2]} 17... Qf7 {[%clk 0:02:57.5]} 18. Bg2
{[%clk 0:01:05.8]} 18... a6 {[%clk 0:02:57.6]} 19. Bxe4 {[%clk 0:00:59.9]} 19...
axb5 {[%clk 0:02:58.3]} 20. cxb5 {[%clk 0:01:01.5]} 20... Bd7 {[%clk 0:02:57]}
21. a4 {[%clk 0:01:02.4]} 21... Rad8 {[%clk 0:02:54]} 22. Qc1 {[%clk 0:01:02.7]}
22... b6 {[%clk 0:02:54.7]} 23. Kb2 {[%clk 0:01:03]} 23... Nf5 {[%clk
0:02:54.9]} 24. Rg1 {[%clk 0:01:01.3]} 24... Qh5 {[%clk 0:02:51.1]} 25. Rg2
{[%clk 0:00:55.4]} 25... Be8 {[%clk 0:02:43.9]} 26. Bg3 {[%clk 0:00:51.5]} 26...
Bg6 {[%clk 0:02:42]} 27. a5 {[%clk 0:00:50.8]} 27... bxa5 {[%clk 0:02:42.1]} 28.
Rxa5 {[%clk 0:00:50.7]} 28... Nxg3 {[%clk 0:02:38]} 29. Bxg6 {[%clk 0:00:49.3]}
29... Qxg6 {[%clk 0:02:38.1]} 30. hxg3 {[%clk 0:00:47.6]} 30... Qe4 {[%clk
0:02:37.6]} 0-1

[Event "*** Titled Tuesday 3|2 Blitz"]
[Site "Chess.com"]
[Date "2017.05.02"]
[Round "2"]
[White "GMBenjaminBok"]
[Black "TheNextLevelFan"]
[Result "1-0"]
[WhiteElo "2654"]
[BlackElo "2390"]
[TimeControl "180+2"]
[EndTime "13:18:09 PDT"]
[Termination "GMBenjaminBok won by resignation"]

1. Nf3 {[%clk 0:03:02]} 1... Nf6 {[%clk 0:02:58.9]} 2. g3 {[%clk 0:03:02.8]}
2... d5 {[%clk 0:03:00.7]} 3. Bg2 {[%clk 0:03:03.7]} 3... e6 {[%clk 0:03:02.1]}
4. O-O {[%clk 0:03:04.5]} 4... Be7 {[%clk 0:03:03.7]} 5. c4 {[%clk 0:03:04.5]}
5... O-O {[%clk 0:03:01.9]} 6. b3 {[%clk 0:03:05.9]} 6... c5 {[%clk 0:03:01.5]}
7. Bb2 {[%clk 0:03:06.8]} 7... d4 {[%clk 0:03:00.9]} 8. e3 {[%clk 0:03:06.2]}
8... Nc6 {[%clk 0:03:02.1]} 9. exd4 {[%clk 0:03:00.9]} 9... cxd4 {[%clk
0:03:03.2]} 10. d3 {[%clk 0:02:58.6]} 10... a5 {[%clk 0:03:01]} 11. Re1 {[%clk
0:02:57.2]} 11... Qb6 {[%clk 0:02:59.2]} 12. Na3 {[%clk 0:02:50.1]} 12... Rd8
{[%clk 0:02:55.1]} 13. Nb5 {[%clk 0:02:50.1]} 13... Bc5 {[%clk 0:02:45.1]} 14.
a3 {[%clk 0:02:29.9]} 14... Bd7 {[%clk 0:02:40.4]} 15. Bc1 {[%clk 0:02:29.6]}
15... Ne7 {[%clk 0:02:22.3]} 16. a4 {[%clk 0:02:17.3]} 16... Bc6 {[%clk
0:02:10.9]} 17. Bg5 {[%clk 0:02:16.3]} 17... h6 {[%clk 0:01:55.7]} 18. Bxf6
{[%clk 0:02:15.6]} 18... gxf6 {[%clk 0:01:57.6]} 19. Nh4 {[%clk 0:02:11.7]}
19... Kg7 {[%clk 0:01:51.9]} 20. Qg4+ {[%clk 0:02:11.3]} 20... Kh7 {[%clk
0:01:50.6]} 21. Qh5 {[%clk 0:02:07.1]} 21... Rf8 {[%clk 0:01:47.7]} 22. Re2
{[%clk 0:01:58.1]} 22... Ng6 {[%clk 0:01:44.2]} 23. Rxe6 {[%clk 0:01:35.1]}
23... Nxh4 {[%clk 0:01:43]} 24. Rxf6 {[%clk 0:01:35]} 24... Ng6 {[%clk
0:01:41.5]} 25. Be4 {[%clk 0:01:34.6]} 25... Bxe4 {[%clk 0:01:36.9]} 26. Rxb6
{[%clk 0:01:34]} 26... Bxb6 {[%clk 0:01:29.3]} 27. dxe4 {[%clk 0:01:34.3]} 27...
Rad8 {[%clk 0:01:21.8]} 28. Rd1 {[%clk 0:01:34.8]} 28... d3 {[%clk 0:01:18.6]}
29. c5 {[%clk 0:01:35]} 1-0

[Event "*** Titled Tuesday 3|2 Blitz"]
[Site "Chess.com"]
[Date "2017.05.02"]
[Round "2"]
[White "Blitzstream"]
[Black "Yaacovn"]
[Result "1-0"]
[WhiteElo "2453"]
[BlackElo "2557"]
[TimeControl "180+2"]
[EndTime "13:18:10 PDT"]
[Termination "Blitzstream won by resignation"]

1. g3 {[%clk 0:03:02]} 1... c6 {[%clk 0:03:00.2]} 2. Bg2 {[%clk 0:03:02.1]} 2...
d5 {[%clk 0:03:01.4]} 3. b3 {[%clk 0:03:03.7]} 3... Nf6 {[%clk 0:02:58.4]} 4.
Bb2 {[%clk 0:03:04.9]} 4... g6 {[%clk 0:02:59.1]} 5. d3 {[%clk 0:03:05.3]} 5...
Bg7 {[%clk 0:02:53.9]} 6. Nd2 {[%clk 0:03:06.6]} 6... O-O {[%clk 0:02:54.3]} 7.
e3 {[%clk 0:03:07]} 7... Bg4 {[%clk 0:02:54]} 8. Ne2 {[%clk 0:03:06.5]} 8...
Nbd7 {[%clk 0:02:51]} 9. h3 {[%clk 0:03:06.9]} 9... Bxe2 {[%clk 0:02:49.7]} 10.
Qxe2 {[%clk 0:03:07.6]} 10... Ne8 {[%clk 0:02:50.4]} 11. Bxg7 {[%clk 0:03:07.7]}
11... Nxg7 {[%clk 0:02:47.3]} 12. O-O {[%clk 0:03:04.8]} 12... e5 {[%clk
0:02:45.5]} 13. d4 {[%clk 0:03:02.9]} 13... exd4 {[%clk 0:02:45.9]} 14. exd4
{[%clk 0:03:03.7]} 14... Ne6 {[%clk 0:02:46.1]} 15. c3 {[%clk 0:03:02.8]} 15...
Re8 {[%clk 0:02:46.2]} 16. Qd3 {[%clk 0:03:03]} 16... Nf6 {[%clk 0:02:46.5]} 17.
Rfe1 {[%clk 0:03:03.3]} 17... Qa5 {[%clk 0:02:47]} 18. a4 {[%clk 0:02:30.1]}
18... Re7 {[%clk 0:02:41.2]} 19. Re3 {[%clk 0:02:26]} 19... Rae8 {[%clk
0:02:37.1]} 20. b4 {[%clk 0:02:23.2]} 20... Qc7 {[%clk 0:02:37.6]} 21. Rae1
{[%clk 0:02:23.5]} 21... Ng7 {[%clk 0:02:32.6]} 22. Rxe7 {[%clk 0:02:16.8]}
22... Rxe7 {[%clk 0:02:33.4]} 23. Rxe7 {[%clk 0:02:18.7]} 23... Qxe7 {[%clk
0:02:34.1]} 24. Qe3 {[%clk 0:02:19.4]} 24... Qxe3 {[%clk 0:02:34.5]} 25. fxe3
{[%clk 0:02:20.2]} 25... Nf5 {[%clk 0:02:36.1]} 26. Kf2 {[%clk 0:02:20.2]} 26...
Nd6 {[%clk 0:02:37.6]} 27. Ke2 {[%clk 0:02:18.1]} 27... h5 {[%clk 0:02:38.1]}
28. Kd3 {[%clk 0:02:18.8]} 28... Nf5 {[%clk 0:02:38.9]} 29. Nf1 {[%clk
0:02:12.2]} 29... Nd6 {[%clk 0:02:36.8]} 30. Nd2 {[%clk 0:02:12.8]} 30... Kg7
{[%clk 0:02:37.2]} 31. c4 {[%clk 0:02:06.2]} 31... dxc4+ {[%clk 0:02:36.9]} 32.
Nxc4 {[%clk 0:02:07.2]} 32... Nxc4 {[%clk 0:02:35.8]} 33. Kxc4 {[%clk
0:02:07.6]} 33... Kf8 {[%clk 0:02:21.6]} 34. b5 {[%clk 0:02:01.5]} 34... cxb5+
{[%clk 0:02:22.2]} 35. Kxb5 {[%clk 0:02:03.4]} 35... Ne8 {[%clk 0:02:11.7]} 36.
Bxb7 {[%clk 0:01:50]} 36... Nd6+ {[%clk 0:02:08.3]} 37. Ka6 {[%clk 0:01:50.3]}
37... Nf5 {[%clk 0:02:07.6]} 38. Kxa7 {[%clk 0:01:49.5]} 38... Nxe3 {[%clk
0:02:06.5]} 39. a5 {[%clk 0:01:49.9]} 39... Ke7 {[%clk 0:02:07.4]} 40. a6 {[%clk
0:01:51]} 40... Kd6 {[%clk 0:02:08]} 41. Kb8 {[%clk 0:01:51.7]} 1-0

[Event "*** Titled Tuesday 3|2 Blitz"]
[Site "Chess.com"]
[Date "2017.05.02"]
[Round "2"]
[White "IIIlllII1llIl"]
[Black "Rating-Schmating"]
[Result "1-0"]
[WhiteElo "2552"]
[BlackElo "2210"]
[TimeControl "180+2"]
[EndTime "13:18:37 PDT"]
[Termination "IIIlllII1llIl won by resignation"]

1. e4 {[%clk 0:03:02]} 1... e6 {[%clk 0:02:59.4]} 2. d4 {[%clk 0:03:02.9]} 2...
d5 {[%clk 0:02:59.1]} 3. Nd2 {[%clk 0:03:04.1]} 3... a6 {[%clk 0:03:00.1]} 4.
Ngf3 {[%clk 0:03:03.1]} 4... Nf6 {[%clk 0:03:01.2]} 5. Bd3 {[%clk 0:02:43.7]}
5... c5 {[%clk 0:03:01.8]} 6. exd5 {[%clk 0:02:42.5]} 6... Qxd5 {[%clk
0:03:00.7]} 7. dxc5 {[%clk 0:02:39.3]} 7... Bxc5 {[%clk 0:02:59.9]} 8. O-O
{[%clk 0:02:39.2]} 8... Nc6 {[%clk 0:02:56.7]} 9. Qe2 {[%clk 0:02:39.1]} 9...
O-O {[%clk 0:02:49.1]} 10. Ne4 {[%clk 0:02:39.3]} 10... Nxe4 {[%clk 0:02:45.5]}
11. Bxe4 {[%clk 0:02:41.2]} 11... Qh5 {[%clk 0:02:36.1]} 12. Rd1 {[%clk
0:02:41.3]} 12... Ne5 {[%clk 0:02:18]} 13. Bf4 {[%clk 0:02:39.9]} 13... Nxf3+
{[%clk 0:02:03.6]} 14. Bxf3 {[%clk 0:02:38.7]} 14... Qg6 {[%clk 0:02:03.9]} 15.
c3 {[%clk 0:02:18.7]} 15... f6 {[%clk 0:01:55.5]} 16. Qc4 {[%clk 0:02:11.1]}
16... Ba7 {[%clk 0:01:49.1]} 17. Bd6 {[%clk 0:01:41.7]} 17... Re8 {[%clk
0:01:46.4]} 18. Rd2 {[%clk 0:01:12.3]} 18... Bb8 {[%clk 0:01:41.9]} 19. Rad1
{[%clk 0:01:02.1]} 19... Bxd6 {[%clk 0:01:41.4]} 20. Rxd6 {[%clk 0:01:04]} 20...
Rb8 {[%clk 0:01:30.8]} 21. Qc7 {[%clk 0:01:01.7]} 21... Ra8 {[%clk 0:01:27.4]}
22. Rd8 {[%clk 0:01:01.7]} 22... Bd7 {[%clk 0:01:18.5]} 23. R8xd7 {[%clk
0:01:00.4]} 23... Rac8 {[%clk 0:01:18.5]} 24. Qg3 {[%clk 0:00:59.5]} 24... Qh6
{[%clk 0:01:16.5]} 25. h4 {[%clk 0:00:58.7]} 25... Kh8 {[%clk 0:01:10.1]} 26.
Bxb7 {[%clk 0:00:56]} 26... Rb8 {[%clk 0:01:10.6]} 27. Qxb8 {[%clk 0:00:56.2]}
1-0

[Event "*** Titled Tuesday 3|2 Blitz"]
[Site "Chess.com"]
[Date "2017.05.02"]
[Round "2"]
[White "Marreuh"]
[Black "metalbattler"]
[Result "1-0"]
[WhiteElo "2128"]
[BlackElo "2023"]
[TimeControl "180+2"]
[EndTime "13:18:44 PDT"]
[Termination "Marreuh won by resignation"]

1. e4 {[%clk 0:03:02]} 1... e5 {[%clk 0:02:57.8]} 2. f4 {[%clk 0:03:02.3]} 2...
exf4 {[%clk 0:02:56.7]} 3. Bc4 {[%clk 0:03:03.4]} 3... Be7 {[%clk 0:02:37.4]} 4.
d4 {[%clk 0:02:56]} 4... g5 {[%clk 0:02:29.8]} 5. h4 {[%clk 0:02:47.2]} 5... Nc6
{[%clk 0:02:09.5]} 6. Qh5 {[%clk 0:02:35.1]} 6... d5 {[%clk 0:01:48]} 7. Bxd5
{[%clk 0:02:34.1]} 7... Nh6 {[%clk 0:01:36.6]} 8. Qxh6 {[%clk 0:02:33.2]} 8...
Nxd4 {[%clk 0:01:37.8]} 9. Qg7 {[%clk 0:02:09.8]} 9... Nxc2+ {[%clk 0:01:27.5]}
10. Kd2 {[%clk 0:01:59.7]} 10... Rf8 {[%clk 0:01:28.3]} 11. Kxc2 {[%clk
0:01:56.8]} 11... c6 {[%clk 0:01:25.3]} 12. Bb3 {[%clk 0:01:37.2]} 12... Bf6
{[%clk 0:01:20]} 13. Qxh7 {[%clk 0:01:36.4]} 13... Qd4 {[%clk 0:01:18.4]} 14.
Nf3 {[%clk 0:01:33.1]} 14... Qf2+ {[%clk 0:01:15.9]} 15. Bd2 {[%clk 0:01:28.1]}
15... Qxg2 {[%clk 0:01:15.2]} 16. hxg5 {[%clk 0:01:14.3]} 16... Bg7 {[%clk
0:00:55.1]} 17. Nc3 {[%clk 0:00:58.2]} 17... Qxf3 {[%clk 0:00:53]} 18. Qxg7
{[%clk 0:00:58.6]} 18... Be6 {[%clk 0:00:41.2]} 19. Bxe6 {[%clk 0:00:57.2]}
19... fxe6 {[%clk 0:00:43.1]} 20. Rh7 {[%clk 0:00:57.6]} 1-0